bitfinex/quotes_ETHUSD_20240925
["timestamp","ask_amount","ask_price","bid_price","bid_amount"]
[1727282968657,5.04317497,2605.3,2605.1,0.7741]
[1727282968870,0.13895394,2605.2,2605.1,0.7741]
[1727282969044,1.20484497,2605.3,2605.1,0.7741]
[1727282969262,0.13895394,2605.2,2605.1,0.7741]
[1727282969599,1.20484497,2605.3,2605.1,0.7741]
[1727282969745,0.13895394,2605.2,2605.1,0.7741]
[1727282969951,1.20484497,2605.3,2605.1,0.7741]
[1727282970279,0.13895394,2605.2,2605.1,0.7741]
[1727282970461,1.20484497,2605.3,2605.1,0.7741]
[1727282970663,0.13897571,2605.2,2605.1,0.7741]
[1727282970876,5.04310497,2605.4,2605.1,0.7741]
[1727282971188,0.13897571,2605.2,2605.1,0.7741]
[1727282971413,3.83841,2605.3,2605.1,0.7741]
[1727282971540,0.13899023,2605.2,2605.1,0.7741]
[1727282971741,3.83841,2605.3,2605.1,0.7741]
[1727282971941,0.13899023,2605.2,2605.1,0.7741]
[1727282972145,3.83841,2605.3,2605.1,0.7741]
[1727282972346,0.13899023,2605.2,2605.1,0.7741]
[1727282972579,5.04325497,2605.3,2605.1,0.7741]
[1727282972797,0.13899023,2605.2,2605.1,0.7741]
[1727282973205,5.04325497,2605.3,2605.1,0.7741]
[1727282973373,0.13899023,2605.2,2605.1,0.7741]
[1727282973772,8.88170497,2605.3,2605.1,0.7741]
[1727282973980,0.13899023,2605.2,2605.1,0.7741]
[1727282974374,10.21801111,2605.3,2605.1,0.7741]
[1727282974577,0.13899023,2605.2,2605.1,0.7741]
[1727282975001,6.37956111,2605.3,2605.1,0.7741]
[1727282975197,0.13899023,2605.2,2605.1,0.7741]
[1727282975495,3.83847,2605.2,2605.1,0.7741]
[1727282975708,3.83873,2605.1,2604.8,0.831]
[1727282975882,1.20553293,2605.1,2604.8,0.831]
[1727282976060,5.18347658,2605.0,2604.8,0.831]
[1727282976261,0.13911365,2605.0,2604.8,0.831]
[1727282977706,3.97799365,2605.0,2604.8,0.831]
[1727282977869,3.83891,2604.9,2604.7,0.0373866]
[1727282978067,1.20553293,2605.0,2604.8,7.87266247]
[1727282978283,2.00906158,2605.3,2604.9,0.813]
[1727282978284,1.20553293,2605.3,2604.9,0.813]
[1727282978480,1.20553293,2605.3,2605.0,4.65175]
[1727282978691,1.20553293,2605.5,2605.2,0.813]
[1727282979006,1.20553293,2605.6,2605.2,0.813]
[1727282979167,5.04349293,2605.6,2605.2,0.813]
[1727282980306,5.04349293,2605.6,2605.2,4.65147]
[1727282980479,5.04349293,2605.6,2605.2,0.813]
[1727282981182,1.20553293,2605.6,2605.2,4.65145]
[1727282982990,5.04343293,2605.6,2605.2,0.813]
[1727282983199,0.13899752,2605.5,2605.2,0.813]
[1727282983505,0.13899752,2605.5,2605.2,4.65143]
[1727282983720,0.13899752,2605.5,2605.4,3.97562247]
[1727282984215,1.20553293,2605.7,2605.4,3.97562247]
[1727282984809,0.13937488,2605.6,2605.4,3.97562247]
[1727282985170,0.13937488,2605.6,2605.4,0.755]
[1727282989409,3.97734488,2605.6,2605.4,0.755]
[1727282989609,5.04007926,2605.6,2605.4,0.755]
[1727282990385,8.87807926,2605.6,2605.4,0.755]
[1727282990607,5.04007926,2605.6,2605.4,0.755]
[1727282990808,3.83803,2605.5,2605.4,0.755]
[1727282991109,3.83855,2605.2,2604.9,0.8077]
[1727282991420,3.839,2604.9,2604.7,8.2850866]
[1727282991622,1.20522689,2605.2,2604.7,0.8450866]
[1727282991623,3.83906,2604.8,2604.7,0.8450866]
[1727282991834,4.34348869,2604.8,2604.7,0.8450866]
[1727282991987,3.97873238,2604.8,2604.7,0.8450866]
[1727282992208,0.13967238,2604.8,2604.7,0.8450866]
[1727282993490,3.97873238,2604.8,2604.7,0.8450866]
[1727282993992,3.97873238,2604.8,2604.7,0.0373866]
[1727282993993,4.80253238,2604.8,2604.7,0.0373866]
[1727282994188,5.12406591,2604.8,2604.7,0.0373866]
[1727282994613,6.3292928,2604.8,2604.7,0.0373866]
[1727282994818,5.12406591,2604.8,2604.7,0.0373866]
[1727282995688,0.13967238,2604.8,2604.7,0.8296866]
[1727282996547,5.04394689,2605.1,2604.7,4.6688766]
[1727282996749,0.13918612,2604.8,2604.7,4.6688766]
[1727282996924,3.83863,2605.1,2604.7,7.88949907]
[1727282997257,0.13918612,2604.8,2604.7,7.88949907]
[1727282997559,0.13918612,2604.8,2604.7,4.05030907]
[1727282997730,3.83863,2605.1,2604.7,4.05030907]
[1727282997931,0.13918612,2604.8,2604.7,4.05030907]
[1727282998146,3.83863,2605.1,2604.7,4.05030907]
[1727282998348,0.13918612,2604.8,2604.7,4.05030907]
[1727282998660,7.67735,2605.1,2604.7,4.05030907]
[1727282998881,0.13918612,2604.8,2604.7,7.88951907]
[1727282999071,1.20522689,2605.3,2604.8,3.83906]
[1727282999363,3.83835,2605.3,2605.0,0.7713]
[1727282999940,5.04349689,2605.4,2605.0,0.7713]
[1727283000139,3.83833,2605.3,2605.0,0.7713]
[1727283000528,5.04355689,2605.3,2605.0,0.7713]
[1727283000841,1.20522689,2605.4,2605.1,3.22062247]
[1727283001673,5.04341689,2605.4,2605.0,4.61004]
[1727283001842,1.20522689,2605.4,2605.3,3.22062247]
[1727283002181,1.20522689,2605.5,2605.4,0.7892]
[1727283003460,3.83774,2605.7,2605.4,0.7892]
[1727283003461,1.20522689,2605.7,2605.4,0.7892]
[1727283003778,5.04296689,2605.7,2605.4,0.7892]
[1727283004078,1.20522689,2605.7,2605.5,3.22062247]
[1727283004447,1.60664603,2605.8,2605.7,0.7975]
[1727283004448,1.20522689,2605.8,2605.7,0.7975]
[1727283004782,1.20522689,2605.9,2605.7,7.85583247]
[1727283005070,1.20522689,2606.0,2605.7,7.85583247]
[1727283005229,1.20522689,2605.9,2605.7,4.01812247]
[1727283005430,1.20522689,2605.9,2605.7,0.7975]
[1727283006741,5.44395603,2606.0,2605.7,0.7975]
[1727283006742,1.20522689,2606.0,2605.7,4.01812247]
[1727283006947,1.20522689,2606.0,2605.7,7.85577247]
[1727283007543,1.20522689,2606.0,2605.8,3.83758]
[1727283008047,1.20522689,2606.0,2605.8,7.67509]
[1727283008343,1.20522689,2606.0,2605.9,3.22062247]
[1727283008577,1.20522689,2606.1,2605.9,3.22062247]
[1727283009091,1.20522689,2606.1,2606.0,3.83729]
[1727283009265,1.20522689,2606.1,2605.9,7.05806247]
[1727283009865,1.20522689,2606.2,2606.0,0.7509]
[1727283010647,5.44386603,2606.1,2605.7,0.7844]
[1727283010980,1.20604736,2606.0,2605.7,4.6221]
[1727283011181,1.20604736,2606.1,2605.7,4.6221]
[1727283011391,5.04321736,2606.1,2605.7,0.7844]
[1727283011689,1.20604736,2606.0,2605.7,0.7844]
[1727283013084,0.13994076,2605.9,2605.7,0.7844]
[1727283013949,5.18344812,2605.9,2605.7,0.7844]
[1727283014178,5.18344812,2605.9,2605.5,3.22062247]
[1727283014424,5.18344812,2605.9,2605.5,0.77]
[1727283014571,2.40872754,2605.9,2605.5,0.77]
[1727283014776,5.18344812,2605.9,2605.5,0.77]
[1727283015427,3.8376,2605.8,2605.5,0.77]
[1727283015712,0.14057905,2605.7,2605.3,12.04823]
[1727283015872,5.04364736,2605.8,2605.4,3.83811]
[1727283016079,1.34662641,2605.7,2605.4,3.83811]
[1727283016281,1.34662641,2605.7,2605.5,7.05857247]
[1727283016478,1.34662641,2605.7,2605.6,0.8227]
[1727283016479,0.14057905,2605.7,2605.6,0.8227]
[1727283016709,1.20604736,2605.8,2605.6,0.8227]
[1727283016916,0.14039774,2605.7,2605.6,0.8227]
[1727283017229,1.20604736,2605.8,2605.6,4.66051]
[1727283017380,0.14039774,2605.7,2605.6,4.66051]
[1727283017578,1.20604736,2605.8,2605.6,0.8227]
[1727283017778,0.14039774,2605.7,2605.6,0.8227]
[1727283017989,1.20604736,2605.8,2605.6,0.8227]
[1727283018212,0.14039774,2605.7,2605.6,0.8227]
[1727283018918,1.20604736,2606.0,2605.6,4.66046]
[1727283019123,1.20604736,2606.1,2605.8,3.22062247]
[1727283019423,1.20604736,2606.3,2606.0,3.22062247]
[1727283019588,5.04285736,2606.4,2606.0,3.22062247]
[1727283019913,5.04285736,2606.4,2606.0,7.05785247]
[1727283020078,3.83692,2606.3,2606.0,3.22062247]
[1727283020278,5.04296736,2606.3,2606.0,3.22062247]
[1727283021422,3.83715,2606.1,2605.9,0.7803]
[1727283021654,7.67438,2606.1,2605.7,4.62454]
[1727283021821,3.83732,2606.0,2605.5,4.62491]
[1727283022023,3.83751,2605.9,2605.5,4.62491]
[1727283022755,3.83768,2605.8,2605.5,0.7869]
[1727283022921,4.81963198,2605.8,2605.5,0.7869]
[1727283023740,4.81962198,2605.8,2605.5,0.7869]
[1727283024250,0.98195198,2605.8,2605.5,0.7869]
[1727283024437,5.04354736,2605.9,2605.5,0.7869]
[1727283025245,3.83761,2605.8,2605.5,0.7869]
[1727283026255,3.83781,2605.7,2605.5,0.7869]
[1727283026763,5.04363736,2605.8,2605.5,0.7869]
[1727283027058,3.83759,2605.8,2605.5,0.7869]
[1727283028375,0.14027444,2605.7,2605.5,0.7869]
[1727283028778,5.04363736,2605.8,2605.5,0.7869]
[1727283028953,0.14027444,2605.6,2605.5,0.7869]
[1727283029153,5.04363736,2605.8,2605.5,0.7869]
[1727283029356,0.14027444,2605.6,2605.5,0.7869]
[1727283029536,3.83759,2605.8,2605.5,0.7869]
[1727283029744,0.14027444,2605.6,2605.5,0.7869]
[1727283030045,5.04349736,2605.9,2605.5,0.7869]
[1727283030265,3.83813,2605.5,2605.1,0.7836]
[1727283030473,3.83813,2605.5,2605.0,7.44]
[1727283030474,1.20604736,2605.5,2605.0,7.44]
[1727283030779,1.20604736,2605.5,2605.0,11.27875]
[1727283030780,3.97855345,2605.4,2605.0,11.27875]
[1727283030943,3.97855345,2605.4,2605.0,14.49937247]
[1727283031146,0.14030345,2605.4,2605.0,14.49930247]
[1727283031375,0.14030345,2605.4,2605.3,0.7533]
[1727283031539,1.20604736,2606.0,2605.7,0.7533]
[1727283031744,1.20604736,2605.9,2605.7,3.97392247]
[1727283032044,1.57713627,2606.0,2605.7,3.22062247]
[1727283032242,8.88131736,2605.8,2605.4,0.7625]
[1727283032445,5.04363736,2605.8,2605.4,4.60067]
[1727283032859,5.04351736,2605.9,2605.5,3.22062247]
[1727283033070,1.20604736,2605.9,2605.5,3.22062247]
[1727283033274,5.04344736,2606.0,2605.5,7.05857247]
[1727283033451,5.04344736,2606.0,2605.6,3.83786]
[1727283033649,5.7879767,2606.0,2605.6,3.83786]
[1727283034281,5.7879767,2606.0,2605.5,7.05864247]
[1727283034485,5.04341736,2606.0,2605.5,7.05864247]
[1727283034691,1.20604736,2606.0,2605.6,3.83786]
[1727283034984,1.20604736,2606.0,2605.7,3.83773]
[1727283035179,1.20604736,2606.0,2605.8,0.8211]
[1727283035352,1.20604736,2606.1,2605.8,0.8211]
[1727283035540,5.90922408,2606.1,2605.6,4.65884]
[1727283035947,3.83745,2605.9,2605.6,0.8211]
[1727283036147,3.83745,2605.9,2605.5,7.05855247]
[1727283036148,3.83747,2605.9,2605.5,7.05853247]
[1727283036347,5.04351736,2605.9,2605.5,3.22062247]
[1727283036666,3.8376,2605.8,2605.4,0.8211]
[1727283037163,1.20604736,2606.0,2605.8,4.61919]
[1727283037366,5.84606655,2606.3,2605.8,4.6191]
[1727283037367,1.20604736,2606.1,2605.8,4.6191]
[1727283037556,1.20604736,2606.1,2605.8,4.61912]
[1727283037750,1.20604736,2606.2,2605.8,4.61912]
[1727283038359,1.20604736,2606.2,2605.9,3.22062247]
[1727283038554,1.20604736,2606.3,2606.0,3.83722]
[1727283038777,1.20604736,2606.3,2605.9,3.22062247]
[1727283038976,1.20604736,2606.2,2605.9,3.22062247]
[1727283039178,1.60664603,2606.3,2605.9,3.22062247]
[1727283039179,1.20604736,2606.3,2605.9,7.05799247]
[1727283039369,1.20604736,2606.2,2605.9,7.05799247]
[1727283039572,1.20604736,2606.2,2606.0,3.83729]
[1727283039774,1.60664603,2606.3,2606.2,4.6186]
[1727283039775,1.20604736,2606.3,2606.2,4.6186]
[1727283040087,2.00916655,2606.6,2606.4,3.8367]
[1727283040088,1.20604736,2606.6,2606.4,3.8367]
[1727283040247,1.20604736,2606.6,2606.5,3.22062247]
[1727283040713,1.20604736,2606.6,2606.5,7.05718247]
[1727283041014,1.20604736,2606.8,2606.5,7.05707247]
[1727283041306,1.20604736,2606.7,2606.5,7.05707247]
[1727283041516,1.20604736,2606.8,2606.5,7.05707247]
[1727283041713,1.20604736,2606.8,2606.7,3.22062247]
[1727283042282,2.00943005,2607.1,2606.8,3.83612]
[1727283042283,1.20604736,2606.9,2606.8,3.83612]
[1727283042615,1.20604736,2607.3,2606.9,4.15786]
[1727283042782,5.04143736,2607.3,2606.9,3.54252247]
[1727283042985,1.20604736,2607.3,2606.9,3.54252247]
[1727283043218,1.39513348,2607.2,2606.9,7.37847247]
[1727283043388,1.39513348,2607.2,2606.9,3.54252247]
[1727283043389,5.23066348,2607.2,2606.9,3.54252247]
[1727283043584,5.23066348,2607.2,2606.9,0.3219]
[1727283043817,9.06630348,2607.2,2606.9,0.3219]
[1727283043992,5.00722977,2607.1,2606.9,0.3219]
[1727283044220,6.40263139,2607.1,2606.9,0.3219]
[1727283044418,2.56696139,2607.1,2606.9,0.3219]
[1727283044841,0.18935426,2607.1,2606.9,12.01066247]
[1727283045039,0.18935426,2607.1,2607.0,3.83582]
[1727283045527,1.20604736,2607.4,2607.0,3.83582]
[1727283045736,1.20604736,2607.4,2607.1,7.05622247]
[1727283045947,1.20604736,2607.5,2607.2,3.83546]
[1727283046119,5.98883632,2607.5,2607.1,3.22062247]
[1727283046453,3.83559,2607.2,2606.9,0.3219]
[1727283046808,3.83575,2607.1,2606.9,0.3219]
[1727283047308,5.04152736,2607.3,2606.9,0.3219]
[1727283047512,0.74459734,2607.2,2606.9,4.15787]
[1727283047845,0.74459734,2607.2,2606.9,7.37849247]
[1727283048005,4.58014734,2607.2,2606.9,3.54252247]
[1727283048206,0.74459734,2607.2,2606.9,7.37840247]
[1727283048416,0.74459734,2607.2,2606.9,0.3219]
[1727283048822,3.83539,2607.3,2606.9,0.3219]
[1727283049154,3.83539,2607.3,2606.9,7.37847247]
[1727283049923,0.94769896,2607.5,2607.1,3.22062247]
[1727283050248,4.43418763,2607.4,2606.9,7.37840247]
[1727283050641,3.83539,2607.3,2606.9,0.3219]
[1727283050944,0.7701,2607.2,2606.9,0.3219]
[1727283051851,0.7701,2607.2,2606.9,4.15781]
[1727283052228,0.7701,2607.2,2606.9,0.3219]
[1727283052450,4.60564,2607.2,2606.9,0.3219]
[1727283052642,3.83579,2607.1,2606.9,0.3219]
[1727283052969,5.6302415,2607.2,2606.9,0.3219]
[1727283053123,3.8358,2607.1,2606.9,0.3219]
[1727283054068,5.6302415,2607.2,2606.9,0.3219]
[1727283054225,4.51941889,2607.1,2606.9,0.3219]
[1727283055468,3.83582,2607.0,2606.9,0.3219]
[1727283055764,4.51932889,2607.1,2606.9,0.3219]
[1727283056125,8.35507889,2607.1,2606.9,0.3219]
[1727283056326,3.83582,2607.0,2606.9,0.3219]
[1727283056564,4.74834489,2607.0,2606.9,0.3219]
[1727283057232,0.91252489,2607.0,2606.9,0.3219]
[1727283057767,0.68362889,2607.1,2606.9,0.3219]
[1727283058256,0.19001387,2607.0,2606.9,0.3219]
[1727283058864,0.59887763,2607.4,2607.0,3.83574]
[1727283059068,0.8303,2607.5,2607.1,7.05629247]
[1727283059271,0.8303,2607.5,2607.1,7.05622247]
[1727283059438,0.8303,2607.5,2607.2,3.83546]
[1727283060647,0.8303,2607.5,2607.1,7.05628247]
[1727283060846,4.66547,2607.5,2607.1,7.05628247]
[1727283061058,5.131992,2607.5,2606.9,4.98725]
[1727283061366,3.83525,2607.4,2607.0,3.83582]
[1727283061864,5.131992,2607.5,2607.1,3.83561]
[1727283062086,5.87146736,2607.7,2607.2,3.83542]
[1727283062368,3.83495,2607.6,2607.2,3.83542]
[1727283062572,3.83495,2607.6,2606.9,4.37202247]
[1727283062732,3.83532,2607.4,2606.9,8.82314]
[1727283063037,3.83532,2607.4,2606.9,4.98726]
[1727283063233,0.8205,2607.6,2606.9,1.1514]
[1727283063434,3.83525,2607.4,2606.9,0.3219]
[1727283063629,3.83582,2607.0,2606.9,0.3219]
[1727283065958,2.02654736,2607.3,2606.9,0.3219]
[1727283066160,0.8205,2607.3,2606.9,0.3219]
[1727283066336,3.83568,2607.1,2606.9,0.3219]
[1727283066532,3.83554,2607.2,2606.9,0.3219]
[1727283069897,0.8205,2607.3,2606.9,0.3219]
[1727283070097,3.83532,2607.4,2606.9,7.37842247]
[1727283071006,4.58104134,2607.4,2606.9,7.37842247]
[1727283071589,3.83542,2607.3,2606.9,4.1578]
[1727283071811,3.83582,2607.0,2606.9,0.3219]
[1727283072024,4.296252,2607.0,2606.9,0.3219]
[1727283072889,5.614752,2607.0,2606.9,0.3219]
[1727283073086,7.22139803,2607.0,2606.9,0.3219]
[1727283073291,7.4113177,2607.0,2606.9,0.3219]
[1727283073729,5.25467167,2607.0,2606.9,0.3219]
[1727283074022,8.25467167,2607.0,2606.9,0.3219]
[1727283074230,9.8613177,2607.0,2606.9,0.3219]
[1727283074533,8.25467167,2607.0,2606.9,0.3219]
[1727283074719,9.8613177,2607.0,2606.9,0.3219]
[1727283075233,8.25467167,2607.0,2606.9,0.3219]
[1727283075436,10.80940868,2607.0,2606.9,0.3219]
[1727283076512,8.80467167,2607.0,2606.9,0.3219]
[1727283077448,11.21301167,2607.0,2606.9,0.3219]
[1727283077631,8.80467167,2607.0,2606.9,0.3219]
[1727283078542,8.25467167,2607.0,2606.9,0.3219]
[1727283079719,9.4949853,2607.0,2606.9,0.3219]
[1727283080105,5.1987333,2607.0,2606.9,0.3219]
[1727283080351,1.7969408,2607.0,2606.9,0.3219]
[1727283080536,4.02573967,2607.0,2606.9,0.3219]
[1727283080843,1.7973312,2607.0,2606.9,1.1543]
[1727283081041,0.18991967,2607.0,2606.9,1.1543]
[1727283081252,1.39541627,2607.0,2606.9,1.1543]
[1727283081605,1.39576479,2607.0,2606.9,1.1543]
[1727283082081,0.18991967,2607.0,2606.9,1.1543]
[1727283082266,1.39576479,2607.0,2606.9,1.1543]
[1727283082693,4.02573967,2607.0,2606.9,1.1543]
[1727283082855,7.02260413,2607.0,2606.9,0.3219]
[1727283083055,1.17703732,2607.0,2606.9,0.3219]
[1727283083259,1.79844112,2607.0,2606.9,0.3219]
[1727283083452,0.18991967,2607.0,2606.9,0.3219]
[1727283083683,1.79897242,2607.0,2606.9,0.3219]
[1727283084596,1.79897242,2607.0,2606.9,8.13759247]
[1727283084597,1.39712341,2607.0,2606.9,8.13759247]
[1727283084801,0.18991967,2607.0,2606.9,8.13759247]
[1727283085118,1.20720374,2607.5,2607.4,3.83523]
[1727283085259,1.20720374,2607.5,2607.4,7.88465247]
[1727283085467,1.20689231,2607.6,2607.5,3.83509]
[1727283087004,1.60960499,2607.6,2607.4,11.71980247]
[1727283087215,1.20671956,2607.5,2607.4,7.88458247]
[1727283087386,1.20671956,2607.6,2607.5,3.83509]
[1727283088170,0.18963705,2607.6,2607.5,3.83509]
[1727283088774,1.24410616,2607.8,2607.5,0.8175]
[1727283088980,1.24410616,2607.8,2607.7,7.05541247]
[1727283089236,0.0373866,2607.8,2607.7,7.05541247]
[1727283090903,0.0373866,2607.8,2607.7,7.80771247]
[1727283098330,0.22832018,2607.8,2607.7,7.80771247]
[1727283098486,0.0373866,2607.8,2607.7,7.80771247]
[1727283099009,0.22832018,2607.8,2607.7,7.80771247]
[1727283099717,0.0373866,2607.8,2607.7,7.80771247]
[1727283100023,0.22832018,2607.8,2607.7,3.97292247]
[1727283100207,0.22832018,2607.8,2607.7,7.80771247]
[1727283102029,0.22832018,2607.8,2607.5,3.22062247]
[1727283102188,0.0373866,2607.8,2607.5,3.22062247]
[1727283102394,0.0373866,2607.8,2607.5,7.05563247]
[1727283102728,0.19198376,2607.7,2607.6,3.83494]
[1727283102925,0.19198376,2607.7,2607.6,7.13225401]
[1727283103131,0.0373866,2607.8,2607.7,3.83479]
[1727283103305,0.0373866,2607.8,2607.7,4.63119]
[1727283103642,0.22930521,2607.8,2607.7,4.63119]
[1727283103817,0.22931245,2607.8,2607.7,4.63119]
[1727283105409,0.0373866,2607.8,2607.7,4.63119]
[1727283105615,0.22931245,2607.8,2607.7,4.63119]
[1727283107133,0.0373866,2607.8,2607.7,4.63119]
[1727283108901,0.22944274,2607.8,2607.7,4.63119]
[1727283109499,0.22944274,2607.8,2607.7,4.70787333]
[1727283109698,0.22944274,2607.8,2607.7,4.63119]
[1727283110828,0.0373866,2607.8,2607.7,4.63119]
[1727283113142,0.22945721,2607.8,2607.7,4.63119]
[1727283113307,0.0373866,2607.8,2607.7,4.63119]
[1727283113510,0.22957302,2607.8,2607.7,4.63119]
[1727283113836,0.0373866,2607.8,2607.7,4.63119]
[1727283114900,0.22957302,2607.8,2607.7,4.63119]
[1727283116526,0.0373866,2607.8,2607.7,4.70786681]
[1727283116745,0.0373866,2607.8,2607.7,4.63119]
[1727283118192,0.0373866,2607.8,2607.7,4.71326388]
[1727283118348,0.0373866,2607.8,2607.7,7.63659]
[1727283120556,0.0373866,2607.8,2607.7,10.85721247]
[1727283120764,0.8330866,2608.6,2607.7,10.05541247]
[1727283120966,0.0373866,2608.6,2608.5,3.22062247]
[1727283121268,0.0373866,2608.6,2608.5,7.13090619]
[1727283121923,0.0373866,2608.6,2608.5,7.82934247]
[1727283122560,0.0373866,2608.6,2608.3,7.05452247]
[1727283122779,0.0373866,2608.6,2608.1,7.05476247]
[1727283122780,3.8709366,2608.6,2608.1,7.05476247]
[1727283122925,0.8265,2608.5,2608.1,3.22062247]
[1727283123126,0.8265,2608.5,2608.1,7.05471247]
[1727283123524,4.66013,2608.5,2608.1,7.05471247]
[1727283124860,0.8265,2608.5,2608.2,3.83404]
[1727283125167,0.8265,2608.5,2608.3,3.22062247]
[1727283125662,0.8265,2608.5,2608.3,7.05449247]
[1727283125864,0.0373866,2608.6,2608.3,7.05449247]
[1727283126219,0.0373866,2608.6,2608.5,3.22062247]
[1727283126423,0.0373866,2608.6,2608.5,7.05424247]
[1727283126664,0.0373866,2608.6,2608.5,7.86364247]
[1727283128752,0.0373866,2609.4,2608.6,0.8281]
[1727283128983,0.0373866,2609.4,2609.3,3.22062247]
[1727283129190,0.0373866,2609.4,2609.3,7.05306247]
[1727283130087,0.0373866,2609.4,2609.1,7.05327247]
[1727283130272,0.0373866,2609.4,2609.2,3.83258]
[1727283130494,0.0373866,2609.4,2609.1,3.22062247]
[1727283130997,3.8697066,2609.4,2609.1,3.22062247]
[1727283131347,0.7714,2609.3,2609.1,3.22062247]
[1727283133177,0.7714,2609.3,2608.9,3.22062247]
[1727283133379,0.19311254,2609.2,2608.9,3.22062247]
[1727283133585,0.19311254,2609.2,2608.9,7.05359247]
[1727283133801,4.60392,2609.3,2608.9,7.05359247]
[1727283133996,0.19311254,2609.1,2608.9,7.05359247]
[1727283134368,4.60392,2609.3,2608.9,7.05359247]
[1727283134571,0.19311254,2609.0,2608.9,7.05359247]
[1727283134787,0.7714,2609.3,2608.9,7.05359247]
[1727283135296,0.19311254,2609.2,2608.9,7.05359247]
[1727283135456,0.7714,2609.3,2608.9,7.05359247]
[1727283135663,0.19311254,2609.1,2608.9,7.05359247]
[1727283135864,0.7714,2609.3,2608.9,7.05359247]
[1727283136062,0.19346701,2609.0,2608.9,7.05359247]
[1727283136255,0.7714,2609.3,2608.9,7.05359247]
[1727283136496,0.19337298,2609.0,2608.9,7.05359247]
[1727283136702,0.7714,2609.3,2608.9,7.05359247]
[1727283136859,0.19337298,2609.0,2608.9,7.05359247]
[1727283137064,0.7714,2609.3,2608.7,7.05392247]
[1727283137260,0.7714,2609.3,2608.5,3.22062247]
[1727283137261,3.83303,2608.9,2608.5,3.22062247]
[1727283137669,0.19337298,2608.8,2608.5,3.22062247]
[1727283138109,0.19337298,2608.8,2607.9,12.37]
[1727283138110,4.6526,2608.7,2608.1,7.05472247]
[1727283138263,3.83363,2608.5,2608.1,3.22062247]
[1727283138466,0.7628,2608.3,2607.9,7.05504247]
[1727283138664,0.7628,2608.3,2608.1,3.22062247]
[1727283138865,1.99791956,2608.6,2608.2,3.83406]
[1727283139098,0.7912,2608.6,2608.3,3.22062247]
[1727283139290,5.83141956,2608.6,2608.3,3.22062247]
[1727283139510,0.7912,2608.6,2608.3,3.22062247]
[1727283140085,4.62468,2608.6,2608.3,3.22062247]
[1727283140268,4.62468,2608.6,2608.1,3.83419]
[1727283140269,5.83139956,2608.6,2608.1,7.05481247]
[1727283140663,3.83387,2608.4,2607.9,7.05500247]
[1727283140868,4.6353,2608.3,2607.9,3.22062247]
[1727283141063,4.6353,2608.3,2607.8,3.83464]
[1727283141300,4.6353,2608.3,2607.9,3.22062247]
[1727283141505,3.83413,2608.2,2607.7,7.05533247]
[1727283141670,3.83413,2608.2,2607.7,7.05541247]
[1727283142441,5.84202956,2608.3,2607.9,3.22062247]
[1727283142612,1.20671956,2608.2,2607.9,3.22062247]
[1727283142806,3.83421,2608.1,2607.7,3.22062247]
[1727283143135,4.63567,2608.0,2607.5,3.22062247]
[1727283143501,4.63567,2608.0,2607.5,3.2973163]
[1727283143840,4.63567,2608.0,2607.5,7.1323863]
[1727283144035,8.47012,2608.0,2607.5,7.1323863]
[1727283144337,8.47012,2608.0,2607.5,3.2973163]
[1727283144338,3.83467,2607.8,2607.5,3.2973163]
[1727283144544,3.83467,2607.8,2607.5,3.22062247]
[1727283145140,1.20671956,2607.9,2607.5,7.05565247]
[1727283145300,5.84238956,2608.0,2607.5,7.13234626]
[1727283145501,1.20671956,2608.1,2607.9,3.22062247]
[1727283145739,0.759,2608.3,2608.0,3.83424]
[1727283145954,0.759,2608.3,2608.1,7.05472247]
[1727283146115,1.96571956,2608.5,2608.1,3.22062247]
[1727283146436,5.79933956,2608.5,2608.1,3.22062247]
[1727283146637,3.83377,2608.4,2608.1,3.22062247]
[1727283148162,0.19172314,2608.3,2608.1,3.22062247]
[1727283148527,3.83379,2608.4,2608.1,3.22062247]
[1727283148732,0.19172314,2608.2,2608.1,3.22062247]
[1727283148966,4.59262,2608.5,2608.1,3.22062247]
[1727283149167,0.19172314,2608.2,2608.1,3.22062247]
[1727283149691,4.59262,2608.5,2608.1,3.22062247]
[1727283149897,0.19172314,2608.2,2608.1,3.22062247]
[1727283150186,5.79933956,2608.5,2608.1,3.22062247]
[1727283150394,0.19172314,2608.2,2608.1,7.13149878]
[1727283150680,1.96571956,2608.5,2608.2,3.83404]
[1727283150888,1.20671956,2608.5,2608.4,3.22062247]
[1727283153364,1.20671956,2608.5,2608.2,7.05461247]
[1727283154101,5.04046956,2608.5,2608.0,7.05490247]
[1727283154288,3.83385,2608.4,2608.0,3.22062247]
[1727283154586,4.60611,2608.3,2607.8,14.49525247]
[1727283154749,4.60611,2608.3,2607.6,3.83481]
[1727283154750,3.83427,2608.1,2607.6,7.05543247]
[1727283155287,3.83427,2608.1,2607.7,3.83479]
[1727283155447,3.83427,2608.1,2607.8,3.22062247]
[1727283155652,3.83427,2608.1,2607.7,3.83479]
[1727283155951,3.83427,2608.1,2607.7,7.05541247]
[1727283156485,5.81291956,2608.3,2607.5,7.05569247]
[1727283156486,0.8285,2607.9,2607.5,7.05569247]
[1727283157077,0.19187142,2607.8,2607.5,7.05569247]
[1727283157722,4.02658142,2607.8,2607.3,11.65889247]
[1727283158119,0.19187142,2607.8,2607.4,3.83522]
[1727283158279,0.19187142,2607.8,2607.5,7.05571247]
[1727283158476,0.19187142,2607.8,2607.7,3.22062247]
[1727283159213,5.84853956,2608.1,2607.7,3.22062247]
[1727283159399,0.19158912,2607.8,2607.7,7.13210084]
[1727283159582,0.8075,2608.1,2607.7,7.13210084]
[1727283159914,0.8075,2608.1,2607.7,7.05541247]
[1727283160120,0.19158912,2608.0,2607.7,7.05541247]
[1727283160320,0.19158912,2608.0,2607.7,7.13209907]
[1727283161382,0.19158912,2608.0,2607.8,3.83458]
[1727283161619,0.19158912,2608.0,2607.9,3.22062247]
[1727283161785,0.19158912,2608.0,2607.9,7.05512247]
[1727283162223,5.04064956,2608.3,2607.9,7.05512247]
[1727283162523,5.04064956,2608.3,2607.9,7.13180473]
[1727283162684,0.19169048,2608.2,2607.9,3.29730473]
[1727283162886,5.04064956,2608.3,2607.9,3.22062247]
[1727283163108,0.19170495,2608.1,2607.9,7.05506247]
[1727283163313,5.04064956,2608.3,2607.9,7.05506247]
[1727283163511,0.19170495,2608.0,2607.9,7.05506247]
[1727283163832,5.04064956,2608.3,2607.9,3.83444]
[1727283164011,0.19170495,2608.0,2607.9,3.83444]
[1727283164215,5.04064956,2608.3,2607.9,3.83444]
[1727283164389,0.19170495,2608.0,2607.9,3.83444]